bitfinex-derivatives/quotes_SOLF0:USTF0_20250703
["timestamp","ask_amount","ask_price","bid_price","bid_amount"]
[1751552766399,7.14446099,153.32,153.27,4.4524]
[1751552766599,7.14446099,153.32,153.27,194.66]
[1751552766898,6.5207,153.29,153.27,194.66]
[1751552768189,53.00763896,153.38,153.27,194.66]
[1751552768394,7.14446099,153.34,153.27,194.66]
[1751552768596,6.5194,153.32,153.29,6.5206]
[1751552769004,7.14446099,153.34,153.29,6.5206]
[1751552770206,7.14446099,153.34,153.3,6.5202]
[1751552770408,7.14446099,153.35,153.3,6.5202]
[1751552770697,6.5197,153.32,153.29,6.5204]
[1751552771204,7.14446099,153.35,153.29,6.5204]
[1751552771398,6.5201,153.31,153.27,194.66]
[1751552771598,7.14446099,153.33,153.27,194.66]
[1751552772002,7.14446099,153.33,153.27,6.5213]
[1751552772201,7.14446099,153.33,153.27,194.64]
[1751552772502,6.5207,153.29,153.27,201.1614]
[1751552773302,7.14446099,153.33,153.27,194.64]
[1751552773508,6.00763896,153.36,153.27,194.64]
[1751552773509,7.14446099,153.35,153.27,194.64]
[1751552773700,5.33257617,153.34,153.28,2.3209]
[1751552773905,7.14446099,153.33,153.28,2.3209]
[1751552774107,7.14446099,153.31,153.26,47.0]
[1751552774307,6.5215,153.27,153.26,47.0]
[1751552775010,7.14446099,153.29,153.21,46.94]
[1751552775405,54.08446099,153.28,153.15,5.38370493]
[1751552775707,9.91694683,153.27,153.15,5.38370493]
[1751552775909,4.58440666,153.27,153.15,5.38370493]
[1751552776108,51.66070666,153.28,153.16,7.14446099]
[1751552776305,51.66070666,153.28,153.15,5.38370493]
[1751552776306,56.44746099,153.28,153.18,7.14446099]
[1751552776609,2.2267,153.32,153.2,7.14446099]
[1751552776802,12.451729,153.31,153.2,7.14446099]
[1751552777002,7.66392685,153.3,153.23,6.5232]
[1751552777207,5.30726801,153.3,153.19,246.0148]
[1751552777400,6.00763896,153.28,153.17,2.1752]
[1751552777607,9.99716801,153.27,153.17,46.94]
[1751552777906,6.5245,153.21,153.17,46.94]
[1751552778106,4.6899,153.27,153.17,46.94]
[1751552778305,2.3556,153.25,153.17,46.94]
[1751552778514,6.5244,153.21,153.17,53.4658]
[1751552779004,2.3556,153.25,153.17,46.94]
[1751552779204,5.30306158,153.26,153.17,46.94]
[1751552779406,4.6899,153.27,153.17,46.94]
[1751552779607,6.524,153.22,153.18,6.5252]
[1751552779813,4.6899,153.27,153.17,46.94]
[1751552780513,6.5235,153.23,153.19,6.5248]
[1751552780708,4.6899,153.27,153.17,46.94]
[1751552781211,7.14446099,153.29,153.2,7.14446099]
[1751552781406,7.14446099,153.29,153.21,197.6864]
[1751552781602,7.14446099,153.29,153.25,6.5223]
[1751552781603,13.66546099,153.29,153.25,6.5223]
[1751552781909,7.14446099,153.31,153.22,58.62116099]
[1751552782103,7.14446099,153.29,153.22,46.96]
[1751552782309,2.34910709,153.31,153.22,46.96]
[1751552782505,7.14446099,153.28,153.22,46.96]
[1751552782716,7.14446099,153.29,153.22,46.96]
[1751552782911,5.29935417,153.28,153.22,46.96]
[1751552783307,6.5222,153.26,153.23,6.5232]
[1751552783505,6.5222,153.26,153.22,46.96]
[1751552783713,6.5222,153.26,153.22,53.4834]
[1751552784010,7.14446099,153.29,153.22,46.96]
[1751552784313,5.29809746,153.28,153.22,46.96]
[1751552784902,5.29809746,153.28,153.17,2.2915]
[1751552785103,4.4068,153.28,153.18,242.58]
[1751552785304,6.5233,153.23,153.18,242.58]
[1751552785515,4.4068,153.28,153.18,242.6]
[1751552785911,4.4068,153.28,153.19,6.5245]
[1751552785912,6.5236,153.23,153.19,6.5245]
[1751552786214,13.94467042,153.28,153.18,242.6]
[1751552786714,13.94467042,153.28,153.19,6.5247]
[1751552787011,6.5232,153.23,153.2,6.5244]
[1751552787207,13.94467042,153.28,153.18,242.6]
[1751552787716,6.5235,153.23,153.18,242.6]
[1751552787912,13.94467042,153.28,153.18,247.36893521]
[1751552788109,6.5236,153.23,153.18,247.36893521]
[1751552788507,9.17573521,153.28,153.18,247.36893521]
[1751552788704,13.94467042,153.28,153.18,247.36893521]
[1751552788909,6.5239,153.22,153.19,6.5246]
[1751552789415,9.17573521,153.28,153.18,242.6]
[1751552789611,4.76893521,153.28,153.18,242.6]
[1751552790114,6.5231,153.24,153.21,6.5238]
[1751552790516,4.5057,153.31,153.19,4.76893521]
[1751552790817,4.76893521,153.28,153.21,4.76893521]
[1751552791007,4.76893521,153.28,153.22,6.5234]
[1751552791312,4.76893521,153.28,153.21,4.76893521]
[1751552791504,4.76893521,153.28,153.19,4.76893521]
[1751552791706,22.58007042,153.28,153.18,46.96]
[1751552791910,2.3777,153.27,153.18,46.96]
[1751552792617,6.5249,153.19,153.18,46.96]
[1751552793218,6.5247,153.2,153.18,46.96]
[1751552793706,49.3377,153.27,153.18,46.96]
[1751552794511,13.044,153.26,153.15,5.38370493]
[1751552794721,9.74766665,153.25,153.15,5.38370493]
[1751552794911,5.25796665,153.24,153.15,5.38370493]
[1751552795515,4.4897,153.25,153.15,5.38370493]
[1751552795714,18.30187631,153.24,153.15,5.38370493]
[1751552795913,5.25607631,153.23,153.15,5.38370493]
[1751552796116,6.5262,153.16,153.15,5.38370493]
[1751552796914,48.42,153.22,153.15,5.38370493]
[1751552797620,48.42,153.22,153.15,11.91030493]
[1751552797915,48.42,153.22,153.15,5.38370493]
[1751552798317,6.5258,153.17,153.15,5.38370493]
[1751552798921,6.5257,153.18,153.15,5.38370493]
[1751552799512,6.5262,153.16,153.15,5.38370493]
[1751552799712,48.42,153.22,153.15,5.38370493]
[1751552801319,4.4897,153.25,153.16,7.15700066]
[1751552801521,4.4897,153.25,153.16,14.14620066]
[1751552801723,2.3777,153.27,153.16,6.9892]
[1751552801929,2.3777,153.27,153.16,14.14620066]
[1751552802318,6.5238,153.22,153.19,6.5249]
[1751552802519,6.5238,153.22,153.19,54.9649]
[1751552802923,6.5238,153.22,153.19,48.44]
[1751552803120,8.39724267,153.27,153.19,48.44]
[1751552803622,6.5244,153.21,153.19,48.44]
[1751552804826,2.3777,153.27,153.19,48.44]
[1751552805026,6.00789046,153.26,153.19,48.44]
[1751552805227,6.5239,153.22,153.19,48.44]
[1751552805428,8.38559046,153.27,153.19,48.44]
[1751552806228,11.52480883,153.26,153.19,48.44]
[1751552806428,5.51691837,153.25,153.19,48.44]
[1751552806729,5.51691837,153.24,153.19,48.44]
[1751552806925,2.3777,153.27,153.19,48.44]
[1751552807129,5.51574433,153.26,153.19,48.44]
[1751552807329,5.51574433,153.25,153.19,48.44]
[1751552807524,5.51574433,153.24,153.19,48.44]
[1751552807722,2.3777,153.27,153.19,48.44]
[1751552807927,5.51680653,153.26,153.19,48.44]
[1751552808229,5.51680653,153.25,153.19,48.44]
[1751552808429,6.5243,153.21,153.19,48.44]
[1751552808928,2.3777,153.27,153.19,48.44]
[1751552809129,5.51954744,153.26,153.19,48.44]
[1751552809426,2.3777,153.27,153.19,54.9647]
[1751552809427,6.5236,153.22,153.19,54.9647]
[1751552809828,8.38559046,153.27,153.19,48.44]
[1751552810031,5.52076133,153.26,153.19,48.44]
[1751552810228,5.52076133,153.25,153.19,48.44]
[1751552810530,5.52076133,153.24,153.19,48.44]
[1751552810722,6.5225,153.25,153.19,48.44]
[1751552810928,5.52392949,153.24,153.19,48.44]
[1751552811124,2.3777,153.27,153.19,48.44]
[1751552811326,6.5241,153.21,153.19,48.44]
[1751552811832,2.3777,153.27,153.19,48.44]
[1751552812032,5.52456752,153.26,153.19,48.44]
[1751552812332,5.52456752,153.25,153.2,6.5242]
[1751552812528,5.52456752,153.24,153.19,48.42]
[1751552812719,2.3777,153.27,153.19,54.9448]
[1751552812927,6.5235,153.23,153.19,48.42]
[1751552813225,8.38559046,153.27,153.19,48.42]
[1751552813427,5.528948,153.26,153.19,48.42]
[1751552813731,5.528948,153.25,153.19,48.42]
[1751552813931,5.528948,153.24,153.19,48.42]
[1751552814133,6.5241,153.21,153.19,48.42]
[1751552815330,8.38559046,153.27,153.19,48.42]
[1751552815527,5.53315378,153.26,153.19,48.42]
[1751552815722,6.5243,153.21,153.19,48.42]
[1751552815922,6.5243,153.21,153.16,6.9892]
[1751552816121,6.5252,153.19,153.17,48.42]
[1751552816522,8.38559046,153.27,153.17,48.42]
[1751552816731,6.5262,153.16,153.15,5.38370493]
[1751552818827,6.00789046,153.22,153.15,5.38370493]
[1751552819027,5.53585877,153.21,153.15,5.38370493]
[1751552819233,6.5253,153.19,153.16,6.5259]
[1751552819630,6.00789046,153.24,153.15,5.38370493]
[1751552819829,6.5247,153.2,153.17,6.5255]
[1751552820027,6.5247,153.2,153.15,5.38370493]
[1751552820226,6.5244,153.21,153.18,6.5251]
[1751552820434,6.00789046,153.25,153.18,6.5251]
[1751552820635,5.54215342,153.24,153.18,6.5251]
[1751552820825,6.5243,153.21,153.17,48.44]
[1751552821029,58.86779046,153.26,153.17,50.5999]
[1751552821232,5.52959671,153.25,153.17,50.5999]
[1751552821433,6.5247,153.2,153.17,50.5999]
[1751552822434,58.86779046,153.26,153.17,50.5999]
[1751552822632,5.53075987,153.25,153.17,50.5999]
[1751552822936,5.53075987,153.24,153.18,4.76954797]
[1751552823136,5.53075987,153.23,153.18,4.76954797]
[1751552823332,6.5235,153.23,153.18,4.76954797]
[1751552823933,6.523,153.24,153.18,202.36954797]
[1751552824237,6.523,153.24,153.19,4.6177]
[1751552824629,57.52560431,153.3,153.2,4.76954797]
[1751552824630,54.44789046,153.3,153.2,4.76954797]
[1751552824834,4.76954797,153.28,153.2,4.76954797]
[1751552825034,6.5226,153.25,153.2,4.76954797]
[1751552825837,4.76954797,153.28,153.22,4.76954797]
[1751552826032,5.53436895,153.27,153.23,47.94]
[1751552826234,4.76954797,153.3,153.24,4.76954797]
[1751552826437,6.5214,153.28,153.24,4.76954797]
[1751552826941,6.5214,153.28,153.25,6.5221]
[1751552827738,4.76954797,153.31,153.24,4.76954797]
[1751552827938,5.55618049,153.3,153.23,57.31158958]
[1751552828140,5.55618049,153.29,153.23,57.31158958]
[1751552828330,5.55618049,153.28,153.23,57.31158958]
[1751552828535,7.14758958,153.31,153.23,57.31158958]
[1751552828836,6.5218,153.27,153.24,6.5226]
[1751552829036,6.5218,153.27,153.23,57.31158958]
[1751552829436,6.5213,153.28,153.25,6.5223]
[1751552830244,7.14758958,153.31,153.23,57.31158958]
[1751552830542,5.5519916,153.3,153.23,57.31158958]
[1751552831035,6.00789046,153.34,153.23,57.31158958]
[1751552831036,7.14758958,153.34,153.25,7.14758958]
[1751552831345,5.55055413,153.33,153.26,2.2143]
[1751552831536,6.5198,153.31,153.28,6.521]
[1751552831737,6.5198,153.31,153.28,54.461]
[1751552832038,6.5204,153.3,153.28,47.94]
[1751552832741,6.5207,153.29,153.28,47.94]
[1751552833340,6.5204,153.3,153.28,47.94]
[1751552833541,7.14758958,153.33,153.28,47.94]
[1751552834246,6.5204,153.3,153.28,47.94]
[1751552834547,6.5207,153.29,153.28,47.94]
[1751552834745,202.50163505,153.35,153.28,47.94]
[1751552834945,7.14758958,153.33,153.28,47.94]
[1751552835243,6.5205,153.3,153.28,47.94]
[1751552835548,7.14758958,153.33,153.28,47.94]
[1751552835942,7.14758958,153.29,153.23,2.224]
[1751552836242,7.14758958,153.29,153.22,47.92]
[1751552836447,7.14758958,153.28,153.19,50.2674]
[1751552836643,9.37868958,153.28,153.19,50.2674]
[1751552836843,9.37868958,153.28,153.19,47.92]
[1751552837042,9.37868958,153.28,153.15,5.38370493]
[1751552837043,63.30658004,153.28,153.15,53.30370493]
[1751552837246,6.00789046,153.27,153.15,5.38370493]
[1751552837647,6.5256,153.18,153.15,5.38370493]
[1751552837953,2.3155,153.26,153.15,5.38370493]
[1751552838650,2.3295,153.25,153.15,5.38370493]
[1751552839449,6.5262,153.16,153.15,5.38370493]
[1751552839649,2.3295,153.25,153.15,5.38370493]
[1751552840149,6.5257,153.18,153.15,5.38370493]
[1751552840352,2.3295,153.25,153.15,5.38370493]
[1751552840845,2.3295,153.25,153.15,11.91030493]
[1751552841043,6.5252,153.19,153.15,11.91030493]
[1751552841246,2.3295,153.25,153.15,5.38370493]
[1751552841650,2.3295,153.25,153.17,6.5255]
[1751552842041,2.3295,153.25,153.15,5.38370493]
[1751552842242,2.35698976,153.27,153.19,13.67238958]
[1751552842440,9.37868958,153.28,153.2,47.94]
[1751552842638,6.5237,153.22,153.2,47.94]
[1751552842848,9.37868958,153.28,153.2,54.4644]
[1751552843150,9.37868958,153.28,153.2,47.94]
[1751552843744,6.5239,153.22,153.2,47.94]
[1751552843945,2.33793485,153.27,153.2,47.94]
[1751552844146,6.524,153.22,153.18,6.5253]
[1751552844348,2.33793485,153.27,153.18,47.94]
[1751552844548,9.37868958,153.28,153.18,47.94]
[1751552845056,9.37868958,153.28,153.18,6.5252]
[1751552845348,9.37868958,153.28,153.18,47.94]
[1751552845548,6.5243,153.21,153.18,47.94]
[1751552846448,22.53896129,153.28,153.15,5.38370493]
[1751552846646,6.01268213,153.26,153.16,47.94]
[1751552846846,6.01268213,153.25,153.16,47.94]
[1751552847148,8.18858213,153.25,153.16,47.94]
[1751552847348,6.5258,153.17,153.16,47.94]
[1751552852061,6.5262,153.16,153.15,5.38370493]
[1751552853362,6.526,153.17,153.15,5.38370493]
[1751552853659,2.3871,153.24,153.15,5.38370493]
[1751552853862,2.3871,153.24,153.15,12.53129451]
[1751552854161,8.26868213,153.27,153.17,7.14758958]
[1751552854162,2.256,153.27,153.17,7.14758958]
[1751552854357,2.256,153.27,153.18,52.4274]
[1751552854558,7.14758958,153.28,153.18,52.4274]
[1751552854759,7.14758958,153.28,153.18,54.7455]
[1751552855164,7.14758958,153.28,153.2,6.5242]
[1751552855357,7.14758958,153.28,153.19,7.14758958]
[1751552855857,7.14758958,153.28,153.18,54.7455]
[1751552856060,7.14758958,153.28,153.19,7.14758958]
[1751552856261,6.5233,153.23,153.2,6.5242]
[1751552856959,7.14758958,153.28,153.18,54.7455]
[1751552857463,6.5245,153.2,153.18,54.7455]
[1751552858264,6.5242,153.21,153.18,54.7455]
[1751552858463,2.208,153.27,153.18,54.7455]
[1751552858760,6.5236,153.23,153.2,6.5244]
[1751552859165,6.5239,153.22,153.19,6.5248]
[1751552860254,7.14758958,153.28,153.19,7.14758958]
[1751552860656,7.14758958,153.28,153.18,54.7455]
[1751552860861,6.5231,153.24,153.19,7.14758958]
[1751552861059,7.14758958,153.28,153.19,7.14758958]
[1751552861457,7.14758958,153.28,153.07,4.127e-05]
[1751552861458,19.53,153.24,153.07,4.127e-05]
[1751552861766,6.01268213,153.16,152.98,2.2567]
[1751552861966,13.0542,153.14,152.98,9.41238372]
[1751552862158,5.29287189,153.13,152.98,9.41238372]
[1751552862358,6.5311,153.05,153.01,6.5326]
[1751552862558,4.52048303,153.13,152.99,48.42]
[1751552862762,5.2921177,153.12,152.99,48.42]
[1751552862960,5.2921177,153.12,152.98,2.2567]
[1751552863160,5.2921177,153.11,152.97,4.5751]
[1751552863471,18.3497177,153.1,152.97,4.5751]
[1751552863661,58.39882222,153.09,152.97,4.5751]
[1751552863971,48.42,153.09,152.97,4.5751]
[1751552864265,58.3879184,153.08,152.96,48.42]
[1751552864467,5.45250993,153.07,152.96,48.42]
[1751552864668,9.89400993,153.07,152.96,48.42]
[1751552864862,5.45250993,153.06,152.96,54.9547]
[1751552865060,4.4415,153.07,152.96,54.9547]
[1751552865260,4.4415,153.07,152.96,48.42]
[1751552865458,9.1548561,153.07,152.96,48.42]
[1751552865968,6.533,153.0,152.96,54.9543]
[1751552866168,6.533,153.0,152.96,48.42]
[1751552866366,6.5327,153.01,152.96,54.9546]
[1751552867064,6.5333,153.0,152.96,54.9546]
[1751552868369,7.17490485,153.02,152.96,48.42]
[1751552869374,6.5333,153.0,152.96,54.9543]
[1751552869567,7.17490485,153.02,152.96,48.42]
[1751552869962,6.5325,153.02,152.98,6.5336]
[1751552870673,6.5318,153.03,152.99,6.5333]
[1751552870874,7.17490485,153.04,152.96,48.42]
[1751552871370,6.532,153.03,152.99,6.533]
[1751552871572,7.17490485,153.04,152.99,6.533]
[1751552871872,4.4415,153.07,152.96,48.42]
[1751552872068,7.17490485,153.03,152.96,48.42]
[1751552872273,6.5333,153.0,152.96,54.9546]
[1751552872462,7.17490485,153.03,152.96,54.9546]
[1751552872662,7.17490485,153.03,152.96,48.42]
[1751552873469,7.17490485,153.03,152.96,54.9545]
[1751552873772,4.4415,153.07,152.96,48.42]
[1751552873975,7.17490485,153.01,152.96,48.42]
[1751552874171,6.5334,153.0,152.96,54.9544]
[1751552874372,6.5334,153.0,152.96,48.42]
[1751552874874,7.17490485,153.01,152.96,54.9546]
[1751552874875,6.5335,152.99,152.96,54.9546]
[1751552875171,7.17490485,153.01,152.96,48.42]
[1751552875372,6.5334,153.0,152.96,48.42]
[1751552875577,7.17490485,153.01,152.96,48.42]
[1751552876077,7.17490485,153.03,152.96,48.42]
[1751552877873,6.5324,153.02,152.99,6.5334]
[1751552878082,7.17490485,153.03,152.96,48.42]
[1751552879277,6.5333,153.0,152.97,6.534]
[1751552879781,7.17490485,153.03,152.96,48.42]
[1751552880375,7.17490485,153.04,152.96,48.42]
[1751552880568,7.17490485,153.05,152.96,48.42]
[1751552880770,6.5323,153.02,152.99,6.5334]
[1751552881175,7.17490485,153.05,152.96,48.42]
[1751552881482,6.532,153.03,153.0,6.5328]
[1751552881680,7.17490485,153.05,152.96,48.42]
[1751552882073,7.17490485,153.03,152.96,48.42]
[1751552882277,7.17490485,153.01,152.96,48.42]
[1751552882482,6.5337,152.99,152.96,54.9547]
[1751552882883,7.17490485,153.01,152.96,48.42]
[1751552886178,6.5343,152.97,152.96,48.42]
[1751552886378,7.17490485,152.97,152.93,5.45362318]
[1751552886578,7.17490485,153.0,152.93,5.45362318]
[1751552886579,4.52522004,152.99,152.93,5.45362318]
[1751552886783,6.5355,152.95,152.93,5.45362318]
[1751552887278,6.5356,152.94,152.93,5.45362318]
[1751552887580,7.17490485,152.97,152.93,5.45362318]
[1751552887777,6.5346,152.97,152.94,6.5353]
[1751552887983,7.17490485,152.99,152.93,5.45362318]
[1751552888283,6.5348,152.96,152.93,11.98952318]
[1751552888484,7.17490485,152.99,152.93,5.45362318]
[1751552889482,6.5341,152.98,152.95,6.5349]
[1751552889882,6.5344,152.97,152.94,6.5354]
[1751552890281,6.5344,152.97,152.93,5.45362318]
[1751552890482,6.5344,152.97,152.94,6.5353]
[1751552890680,2.2344,153.02,152.93,5.45362318]
[1751552890881,7.17490485,152.99,152.93,5.45362318]
[1751552891683,6.5345,152.97,152.94,6.5354]
[1751552892479,7.17490485,152.95,152.93,5.45362318]
[1751552893079,7.17490485,152.96,152.93,5.45362318]
[1751552893880,6.5356,152.94,152.93,5.45362318]
[1751552894183,13.71050485,152.94,152.93,5.45362318]
[1751552894383,7.17490485,152.94,152.87,48.28]
[1751552894582,7.17490485,152.9,152.87,48.28]
[1751552895180,7.17490485,152.9,152.86,2.2966]
[1751552895381,48.28,152.9,152.76,48.28]
[1751552895689,7.17490485,152.84,152.76,48.28]
[1751552895889,7.17490485,152.84,152.76,55.45490485]
[1751552896085,6.5406,152.83,152.79,6.5417]
[1751552896386,7.17490485,152.84,152.79,6.5417]
[1751552896583,7.17490485,152.8,152.75,2.2966]
[1751552897085,7.17490485,152.82,152.78,6.5423]
[1751552897387,7.17490485,152.82,152.77,48.3]
[1751552898877,4.46521279,152.88,152.77,48.3]
[1751552899086,7.17490485,152.8,152.76,6.5432]
[1751552899286,7.17490485,152.78,152.72,53.82354142]
[1751552899487,7.17490485,152.76,152.72,53.82354142]
[1751552899783,7.17490485,152.79,152.72,53.82354142]
[1751552900585,7.17490485,152.77,152.72,53.82354142]
[1751552900891,7.17490485,152.78,152.72,53.82354142]
[1751552901290,7.17490485,152.78,152.72,5.52354142]
[1751552901589,7.17490485,152.76,152.72,5.52354142]
[1751552901786,6.5442,152.74,152.72,5.52354142]
[1751552902186,7.17490485,152.76,152.72,5.52354142]
[1751552903695,6.8321,152.81,152.72,12.69844627]
[1751552904190,7.17490485,152.78,152.72,5.52354142]
[1751552904393,7.17490485,152.76,152.72,5.52354142]
[1751552905489,4.34943278,152.8,152.72,5.52354142]
[1751552905684,7.17490485,152.77,152.72,5.52354142]
[1751552906183,6.5436,152.76,152.72,5.52354142]
[1751552906388,7.17490485,152.79,152.72,5.52354142]
[1751552906790,7.17490485,152.79,152.74,6.5438]
[1751552907193,6.5427,152.78,152.74,6.5438]
[1751552907594,14.00700485,152.81,152.75,6.5436]
[1751552907794,6.5422,152.79,152.75,6.5436]
[1751552908198,11.73870485,152.81,152.74,6.544]
[1751552908388,6.5431,152.77,152.74,6.544]
[1751552908595,4.5638,152.81,152.72,5.52354142]
[1751552908796,7.17490485,152.77,152.72,5.52354142]
[1751552909295,6.5442,152.74,152.72,5.52354142]
[1751552910398,6.5446,152.73,152.72,5.52354142]
[1751552911194,48.34,152.79,152.72,5.52354142]
[1751552911395,7.17490485,152.8,152.73,6.5443]
[1751552911596,6.5431,152.77,152.73,6.5443]
[1751552911895,11.73870485,152.81,152.72,53.86354142]
[1751552912097,4.5638,152.81,152.72,60.40834142]
[1751552912299,6.5436,152.76,152.72,53.86354142]
[1751552912495,4.5638,152.81,152.72,53.86354142]
[1751552912695,6.5422,152.79,152.72,61.03844627]
[1751552912896,55.51490485,152.83,152.74,7.17490485]
[1751552913097,13.97310485,152.86,152.76,7.17490485]
[1751552913303,6.541,152.82,152.77,48.36]
[1751552913506,7.17490485,152.84,152.77,48.36]
[1751552913801,6.5424,152.78,152.77,48.36]
[1751552914005,7.17490485,152.78,152.73,2.3351]
[1751552914206,6.5437,152.75,152.73,2.3351]
[1751552914405,7.17490485,152.78,152.73,2.3351]
[1751552914806,7.17490485,152.8,152.73,2.3351]
[1751552915306,6.5425,152.78,152.73,2.3351]
[1751552915508,7.17490485,152.8,152.73,2.3351]
[1751552916004,7.17490485,152.82,152.73,9.51000485]
[1751552916602,6.5428,152.78,152.74,6.544]
[1751552917004,7.17490485,152.81,152.74,6.544]
[1751552917405,7.17490485,152.82,152.75,6.5436]
[1751552917709,6.5427,152.78,152.73,9.51000485]
[1751552917908,7.17490485,152.8,152.74,6.5439]
[1751552918313,6.5432,152.77,152.74,6.5439]
[1751552918513,7.17490485,152.8,152.73,8.8795]
[1751552918713,6.5425,152.78,152.73,2.3351]
[1751552919012,7.17490485,152.8,152.73,2.3351]
[1751552919608,6.5431,152.77,152.74,6.544]
[1751552920716,6.5424,152.78,152.75,6.5437]
[1751552920919,7.17490485,152.8,152.75,6.5437]
[1751552921514,7.17490485,152.8,152.76,6.5433]
[1751552921811,7.17490485,152.78,152.73,2.3351]
[1751552922212,7.17490485,152.78,152.73,8.8794]
[1751552922514,7.17490485,152.79,152.73,2.3351]
[1751552922711,7.17490485,152.79,152.74,6.5441]
[1751552923012,7.17490485,152.79,152.73,2.3351]
[1751552923209,7.17490485,152.79,152.73,8.8796]
[1751552923611,4.30139108,152.85,152.73,2.3351]
[1751552923808,7.17490485,152.8,152.73,2.3351]
[1751552924406,6.5427,152.78,152.75,6.5434]
[1751552924613,7.17490485,152.84,152.76,49.72]
[1751552924812,6.5415,152.81,152.78,6.5421]
[1751552925013,6.5415,152.81,152.76,49.72]
[1751552925316,6.5397,152.85,152.82,6.5405]
[1751552925514,7.17490485,152.87,152.78,2.2372]
[1751552925705,7.17490485,152.85,152.78,49.72]
[1751552925913,6.5409,152.82,152.79,6.5416]
[1751552926413,6.5412,152.81,152.78,56.2623]
[1751552927119,6.5408,152.82,152.78,49.72]
[1751552927616,7.17490485,152.83,152.78,49.72]
[1751552927809,7.17490485,152.83,152.77,51.9457]
[1751552928012,4.31104198,152.88,152.77,49.72]
[1751552928013,6.5424,152.79,152.77,49.72]
[1751552928208,7.17490485,152.81,152.77,49.72]
[1751552929208,6.5422,152.79,152.77,49.72]
[1751552929816,6.5424,152.78,152.77,49.72]
[1751552930715,6.5422,152.79,152.77,49.72]
[1751552931215,7.17490485,152.84,152.77,49.72]
[1751552931715,6.5418,152.8,152.77,56.2627]
[1751552932108,7.17490485,152.84,152.77,49.72]
[1751552932307,7.17490485,152.84,152.77,56.2626]
[1751552932518,6.5418,152.8,152.77,56.2626]
[1751552932818,7.17490485,152.82,152.77,49.72]
[1751552933617,6.5424,152.78,152.77,49.72]
[1751552935313,6.5436,152.76,152.73,58.5994]
[1751552935717,6.5436,152.76,152.74,6.5441]
[1751552936720,6.5437,152.75,152.73,49.72]
[1751552936924,7.17490485,152.78,152.73,49.72]
[1751552937324,7.17490485,152.8,152.73,49.72]
[1751552937619,5.34792602,152.79,152.73,49.72]
[1751552937814,7.17490485,152.78,152.73,49.72]
[1751552938219,6.5441,152.74,152.73,49.72]
[1751552938419,7.17490485,152.78,152.73,49.72]
[1751552938922,6.5431,152.77,152.74,6.5438]
[1751552939522,7.17490485,152.81,152.76,6.543]
[1751552939721,5.36065217,152.8,152.76,6.543]
[1751552939924,5.36065217,152.79,152.78,6.5424]
[1751552940124,5.36877884,152.79,152.75,200.5]
[1751552940422,6.5422,152.79,152.77,6.5426]
[1751552941023,4.28218097,152.81,152.76,6.5431]
[1751552941222,9.65649538,152.8,152.76,6.5431]
[1751552941427,5.37389053,152.79,152.75,200.5]
[1751552941619,5.37389053,152.78,152.72,5.52354142]
[1751552941819,5.37389053,152.77,152.73,49.72]
[1751552942021,4.28385741,152.78,152.73,49.72]
[1751552942219,6.5441,152.74,152.73,49.72]
[1751552942423,7.17490485,152.77,152.73,49.72]
[1751552942625,7.17490485,152.77,152.39,28.03522937]
[1751552942626,43.21273578,152.74,152.39,28.03522937]
[1751552942821,5.99479279,152.61,152.47,6.9062]
[1751552943020,7.5808364,152.6,152.47,6.9062]
[1751552943215,7.5808364,152.6,152.45,56.92212263]
[1751552943216,7.20212263,152.55,152.45,49.72]
[1751552943419,7.20212263,152.55,152.45,56.92212263]
[1751552943624,6.5529,152.54,152.49,6.5548]
[1751552943820,6.5529,152.54,152.46,201.7]
[1751552943821,2.2072,152.6,152.45,56.92212263]
[1751552944024,7.20212263,152.54,152.45,56.92212263]
[1751552944229,7.20212263,152.51,152.39,565.34]
[1751552944428,56.60212263,152.55,152.4,51.659]